[Event "XVII Profigaia Open 2017"]
[Site "Gaia"]
[Date "2017.06.16"]
[Round "4"]
[White "Sismeiro, Miguel"]
[Black "Jesus, Joao Pedro Mendes D"]
[Result "1/2-1/2"]
[ECO "B59"]
[WhiteElo "1528"]
[BlackElo "1868"]
[Annotator "NA RC"]
[PlyCount "153"]
[EventDate "2017.??.??"]
[EventType "swiss"]
[EventCountry "POR"]
[SourceTitle "playchess.com"]
[Source "ChessBase"]
[SourceQuality "1"]
[TimeControl "5400+30"]

{[%evp 8,139,17,10,45,17,33,15,29,32767,13,-10,-16,-27,-13,-35,0,-5,13,-46,-34,-48,32767,32767,172,32767,350,47,43,54,47,-33,79,44,54,59,143,122,135,32767,32767,137,182,46,56,70,106,104,107,101,96,97,99,102,112,95,32767,32767,32767,32767,99,92,32767,32767,32767,97,88,32767,32767,32767,32767,32767,32767,32767,112,78,91,83,83,52,54,45,86,73,52,52,72,50,59,24,66,0,0,0,0,0,0,0,0,0,0,0,0,0,0,0,0,0,0,0,0,0,32767,32767,32767,32767,32767,32767,0,32767,32767,32767,0,0,0,0,0,0,0,0,0,0,0,0]} 1. e4 {[%emt 0:00:00]} c5 {[%emt 0:11:01]} 2. Nf3 {[%emt 0:00:25]} Nc6 {[%emt 0:08:55]} 3. d4 {[%emt 0:01:03]} cxd4 {[%emt 0:00:09]} 4. Nxd4 {[%emt 0:00:10]} Nf6 {[%emt 0:00:07]} 5. Nc3 d6 {[%emt 0:03:25]} 6. Be2 {[%emt 0:05:16]} e5 {[%emt 0:10:06]} 7. Nb3 {[%emt 0:01:09] LiveBook: 697 Games} Be7 {[%emt 0:02:29]} 8. O-O {[%emt 0:02:33]} Be6 {[%emt 0:01:45] B59: Classical Sicilian: 6 Be2 e5 7 Nb3} (8... O-O 9. f4 a5 10. a4 exf4 11. Bxf4 Be6 12. Kh1 d5 13. e5 Ne4 14. Bd3 f5 15. exf6 Bxf6 16. Nxe4 dxe4 17. Bxe4 Qxd1 18. Raxd1 Bxb2 19. Bd6 Rxf1+ 20. Rxf1 {½-½ (40) Ter Sahakyan,S (2605)-Duda,J (2671) Martuni 2016}) 9. Kh1 {[%emt 0:04:49]} d5 {[%emt 0:03:36]} 10. exd5 {[%emt 0:03:07]} Nxd5 {[%emt 0:00:19]} 11. Ne4 {[%emt 0:01:29]} b6 $146 {[%emt 0:15:38]} ({Predecessor:} 11... f5 12. Nec5 Bf7 13. Nxb7 Qb6 14. Bc4 Ndb4 15. Bxf7+ Kxf7 16. Nd6+ Bxd6 17. Qxd6 {0-1 (51) Santos,I (1734)-Amrayeva,A (1990) Maribor 2012}) 12. Bb5 {[%emt 0:07:38]} Rc8 {[%emt 0:02:41]} 13. Qh5 {[%emt 0:02:11]} ({Better is} 13. f4 $11 Ndb4 14. Qxd8+ Rxd8 15. fxe5) 13... O-O {[%emt 0:06:27]} 14. Bxc6 {[%emt 0:09:03]} Rxc6 {[%emt 0:00:12]} 15. Qxe5 {[%emt 0:00:20]} Nf6 $2 {[%emt 0:13:28]} (15... Rxc2 $11 {and Black has nothing to worry.} 16. Nd4 Qc7 17. Qxc7 Rxc7) 16. Nd4 {[%emt 0:03:00]} Rxc2 $2 {[%emt 0:13:08]} (16... Rc8) 17. Nxe6 $2 {[%emt 0:13:35]} (17. Nxc2 $18 Qd3 18. Bg5 Qxc2 19. Bxf6 Bxf6 20. Nxf6+ gxf6 21. Qxf6) 17... fxe6 {[%emt 0:00:21]} 18. Qxe6+ {[%emt 0:00:18]} Kh8 {[%emt 0:00:14]} 19. Qb3 {[%emt 0:00:51]} (19. f3 $14) 19... Re2 {[%emt 0:01:17]} (19... Rxc1 $15 {keeps the upper hand.} 20. Raxc1 Nxe4) 20. Nc3 {[%emt 0:00:34]} Re5 {[%emt 0:00:19]} 21. Bf4 {[%emt 0:00:07]} Rc5 {[%emt 0:00:59]} (21... Rf5 $14 22. Rad1 Qc8) 22. Rad1 {[%emt 0:00:20]} Qe8 {[%emt 0:00:23]} 23. Bg3 {[%emt 0:02:03]} Qg6 {[%emt 0:00:40]} 24. Rfe1 {[%emt 0:03:42]} Re8 {[%emt 0:00:43] [#]} 25. Rxe7 {[%emt 0:04:16]} (25. Qa4 $1 $18) 25... Rxe7 {[%emt 0:00:28]} 26. Bd6 {[%emt 0:00:06]} Rce5 {[%emt 0:01:31]} 27. Bxe7 {[%emt 0:00:58]} Rxe7 {[%emt 0:00:12]} 28. Nd5 {[%emt 0:02:39]} Nxd5 {[%emt 0:01:25]} 29. Qxd5 {[%emt 0:00:10]} Qe8 {[%emt 0:00:46]} 30. g3 {[%emt 0:01:01]} h6 {[%emt 0:01:24]} 31. Qd8 {[%emt 0:00:50]} Qxd8 {[%emt 0:00:19]} 32. Rxd8+ {[%emt 0:00:07]} Kh7 {[%emt 0:00:06]} 33. Rd2 {[%emt 0:00:04]} Kg6 {[%emt 0:00:32]} 34. Kg2 {[%emt 0:00:07]} Kf5 {[%emt 0:01:24]} 35. f4 {[%emt 0:01:09]} g5 {[%emt 0:00:50]} 36. fxg5 {[%emt 0:01:09]} hxg5 {[%emt 0:00:07]} 37. Rf2+ {[%emt 0:00:12]} Kg6 {[%emt 0:00:17]} 38. Kf3 {[%emt 0:00:52]} Kf5 {[%emt 0:00:32]} 39. g4+ {[%emt 0:02:48]} Kg6 {[%emt 0:00:06]} 40. Re2 {[%emt 0:00:09]} Rf7+ {[%emt 0:00:21]} 41. Kg3 {[%emt 0:00:46]} Rd7 {[%emt 0:00:45]} 42. Re3 {[%emt 0:01:30]} Kf6 {[%emt 0:00:34]} 43. h4 {[%emt 0:02:02]} gxh4+ {[%emt 0:00:10]} 44. Kxh4 {[%emt 0:00:06]} Rh7+ {[%emt 0:00:10]} 45. Kg3 {[%emt 0:00:07]} Rd7 {[%emt 0:00:10]} 46. Kf4 {[%emt 0:02:18]} Rd4+ {[%emt 0:00:33]} 47. Re4 {[%emt 0:00:30]} Rd2 {[%emt 0:00:13] [#]} 48. g5+ {[%emt 0:00:05]} ({White should try} 48. Rb4 $1 $16) 48... Kf7 {[%emt 0:00:12]} 49. Kf5 {[%emt 0:01:48]} (49. Rb4 $14) 49... Rf2+ {[%emt 0:00:34]} 50. Kg4 {[%emt 0:01:49]} Rxb2 {[%emt 0:00:35]} 51. Ra4 {[%emt 0:01:38]} a5 {[%emt 0:00:08]} 52. Ra3 {[%emt 0:00:08]} Rb4+ {[%emt 0:00:28]} 53. Kf5 {[%emt 0:00:10]} a4 {[%emt 0:00:34]} 54. Rc3 {[%emt 0:00:29]} Rb5+ {[%emt 0:00:16]} 55. Kg4 {[%emt 0:00:40]} Rb2 {[%emt 0:00:56]} 56. Rc7+ {[%emt 0:00:23]} Kg6 {[%emt 0:00:20]} 57. Rc6+ {[%emt 0:00:04]} Kf7 {[%emt 0:00:24]} 58. Kf5 {[%emt 0:00:15]} Rf2+ {[%emt 0:00:24]} 59. Kg4 {[%emt 0:00:08]} Rg2+ {[%emt 0:00:41]} 60. Kf5 {[%emt 0:00:05]} Rf2+ {[%emt 0:00:05]} 61. Kg4 {[%emt 0:00:05]} b5 {[%emt 0:00:13]} 62. Rb6 {[%emt 0:00:03]} Rg2+ {[%emt 0:00:33]} 63. Kf5 {[%emt 0:00:05]} Rf2+ {[%emt 0:00:05]} 64. Kg4 {[%emt 0:00:10]} Rb2 {[%emt 0:00:40]} 65. Kf5 {[%emt 0:00:06]} Rf2+ {[%emt 0:01:54]} 66. Kg4 Rg2+ {[%emt 0:01:22]} 67. Kf5 {[%emt 0:00:12]} Rf2+ {[%emt 0:00:04]} 68. Kg4 {[%emt 0:00:04]} Rxa2 {[%emt 0:00:21]} 69. Rxb5 {[%emt 0:00:20]} a3 $11 {[%emt 0:00:33]} 70. Rb1 {[%emt 0:00:55]} Rb2 {[%emt 0:00:50]} 71. Ra1 {[%emt 0:00:07]} Rb4+ {[%emt 0:00:10]} 72. Kf3 {[%emt 0:00:14]} Ra4 {[%emt 0:00:19]} 73. Ke3 {[%emt 0:00:04]} a2 {[%emt 0:01:37]} 74. Kd3 {[%emt 0:00:14]} Kg6 {[%emt 0:00:11]} 75. Kc3 {[%emt 0:00:04]} Kxg5 {[%emt 0:00:08]} 76. Kb3 {[%emt 0:00:06]} Ra6 {[%emt 0:00:08]} 77. Rxa2 1/2-1/2

[Event "XVII Profigaia Open 2017"]
[Site "Gaia"]
[Date "2017.06.16"]
[Round "4"]
[White "Donghi, Fabio"]
[Black "Da Silva, Pedro Vieira Prado"]
[Result "0-1"]
[ECO "A35"]
[WhiteElo "1519"]
[BlackElo "1521"]
[Annotator "NA RC"]
[PlyCount "116"]
[EventDate "2017.??.??"]
[EventType "swiss"]
[EventCountry "POR"]
[SourceTitle "playchess.com"]
[Source "ChessBase"]
[SourceQuality "1"]
[TimeControl "5400+30"]

1. c4 {[%emt 0:00:00]} c5 {[%emt 0:00:05]} 2. Nf3 {[%emt 0:00:00]} Nf6 {[%emt 0:00:05]} 3. Nc3 {[%emt 0:00:00]} Nc6 {[%emt 0:00:04]} 4. d3 {[%emt 0:08:39]} e6 {[%emt 0:00:12]} 5. Bf4 {[%emt 0:00:32]} d5 {[%emt 0:00:17]} 6. g3 {[%emt 0:01:38]} Nh5 {[%emt 0:01:23]} 7. Bd2 {[%emt 0:02:54]} Be7 {[%emt 0:02:33]} 8. Bg2 {[%emt 0:00:39]} O-O {[%emt 0:00:36]} 9. O-O {[%emt 0:00:13]} dxc4 {[%emt 0:01:00]} 10. dxc4 {[%emt 0:01:35]} Nd4 {[%emt 0:02:36]} 11. Nxd4 cxd4 {[%emt 0:00:53]} 12. Qc2 {[%emt 0:13:00]} dxc3 {[%emt 0:00:58]} 13. Bxc3 {[%emt 0:00:19]} Bf6 {[%emt 0:01:37]} 14. Be4 {[%emt 0:01:43]} Bxc3 {[%emt 0:01:06]} 15. Bxh7+ {[%emt 0:00:22]} Kh8 {[%emt 0:00:05]} 16. bxc3 {[%emt 0:00:37]} g6 {[%emt 0:00:18]} 17. Bxg6 {[%emt 0:00:15]} fxg6 {[%emt 0:00:05]} 18. Qxg6 {[%emt 0:00:20]} Ng7 {[%emt 0:01:42]} 19. Rad1 {[%emt 0:01:47]} Qf6 {[%emt 0:01:34]} 20. Qxf6 {[%emt 0:00:43]} Rxf6 {[%emt 0:00:05]} 21. Rd8+ {[%emt 0:00:18]} Kh7 {[%emt 0:00:09]} 22. Rfd1 {[%emt 0:01:05]} b6 {[%emt 0:00:58]} 23. R1d4 {[%emt 0:00:52]} Nf5 {[%emt 0:02:16]} 24. Rf4 {[%emt 0:01:55]} Kg6 {[%emt 0:03:44]} 25. Rg4+ {[%emt 0:03:06]} Kh5 {[%emt 0:01:41]} 26. h3 {[%emt 0:01:11]} Rg6 {[%emt 0:01:09]} 27. Rh8+ {[%emt 0:00:36]} Nh6 {[%emt 0:02:44]} 28. Rh4+ {[%emt 0:01:00]} Kg5 {[%emt 0:00:07]} 29. f4+ {[%emt 0:00:16]} Kf5 {[%emt 0:00:07]} 30. Kf2 {[%emt 0:00:57]} Nf7 {[%emt 0:01:27]} 31. Rf8 {[%emt 0:01:06]} Kf6 {[%emt 0:01:36]} 32. Rh7 {[%emt 0:00:36]} Rg7 {[%emt 0:00:16]} 33. Rxg7 {[%emt 0:03:25]} Kxg7 {[%emt 0:00:07]} 34. Re8 {[%emt 0:00:57]} Nd6 {[%emt 0:01:24]} 35. Re7+ {[%emt 0:00:23]} Kf6 {[%emt 0:00:14]} 36. Rh7 {[%emt 0:00:13]} Ne4+ {[%emt 0:00:50]} 37. Ke3 {[%emt 0:00:44]} Nxg3 {[%emt 0:00:28]} 38. Rh6+ {[%emt 0:00:34]} Kg7 {[%emt 0:00:10]} 39. Rh4 {[%emt 0:08:21]} Nf5+ {[%emt 0:01:16]} 40. Kf2 {[%emt 0:00:25]} Nxh4 {[%emt 0:00:04]} 41. e4 {[%emt 0:00:29]} Ba6 {[%emt 0:00:25]} 42. Kg3 {[%emt 0:00:18]} Ng6 {[%emt 0:00:09]} 43. f5 {[%emt 0:00:13]} exf5 44. exf5 {[%emt 0:00:21]} Ne7 {[%emt 0:00:12]} 45. Kg4 {[%emt 0:00:17]} Rf8 {[%emt 0:00:13]} 46. h4 {[%emt 0:00:16]} Bxc4 {[%emt 0:00:35]} 47. h5 {[%emt 0:00:17]} Rxf5 {[%emt 0:00:08]} 48. a4 {[%emt 0:00:30]} Be2+ {[%emt 0:00:18]} 49. Kg3 {[%emt 0:00:18]} Bxh5 {[%emt 0:00:11]} 50. c4 {[%emt 0:00:30]} Bd1 {[%emt 0:00:55]} 51. Kh2 {[%emt 0:00:18]} Rg5 {[%emt 0:00:11]} 52. c5 {[%emt 0:00:25]} bxc5 {[%emt 0:00:07]} 53. a5 {[%emt 0:00:14]} Kf6 {[%emt 0:00:15]} 54. a6 {[%emt 0:00:20]} Kf5 {[%emt 0:00:04]} 55. Kh1 {[%emt 0:00:19]} Kf4 {[%emt 0:00:17]} 56. Kh2 {[%emt 0:00:16]} Kf3 {[%emt 0:00:07]} 57. Kh1 {[%emt 0:00:16]} Kf2 {[%emt 0:00:05]} 58. Kh2 {[%emt 0:00:10]} Rh5# {[%emt 0:00:03]} 0-1

[Event "XVII Profigaia Open 2017"]
[Site "Gaia"]
[Date "2017.06.16"]
[Round "4"]
[White "Camelo, Joao"]
[Black "Andrade, Nuno Filipe"]
[Result "1/2-1/2"]
[ECO "C01"]
[WhiteElo "1300"]
[BlackElo "1765"]
[Annotator "NA RC"]
[PlyCount "34"]
[EventDate "2017.??.??"]
[EventType "swiss"]
[EventCountry "POR"]
[SourceTitle "playchess.com"]
[Source "ChessBase"]
[SourceQuality "1"]
[TimeControl "5400+30"]

1. e4 e6 2. d4 d5 3. exd5 exd5 4. Bf4 Nf6 5. Bd3 Be7 6. Nf3 Bg4 7. h3 Bh5 8. Nbd2 Nc6 9. c3 O-O 10. O-O Re8 11. Qc2 Bg6 12. Bxg6 hxg6 13. Rfe1 Bd6 14. Rxe8+ Nxe8 15. Bxd6 Qxd6 16. Re1 Nf6 17. Ne5 Re8 1/2-1/2

[Event "XVII Profigaia Open 2017"]
[Site "Gaia"]
[Date "2017.06.16"]
[Round "4"]
[White "Pedroso, Manuel"]
[Black "Silva, Ana Ines Teixeira D"]
[Result "0-1"]
[ECO "A57"]
[WhiteElo "1285"]
[BlackElo "1775"]
[Annotator "NA RC"]
[PlyCount "58"]
[EventDate "2017.??.??"]
[EventType "swiss"]
[EventCountry "POR"]
[SourceTitle "playchess.com"]
[Source "ChessBase"]
[SourceQuality "1"]
[TimeControl "5400+30"]

1. d4 {[%emt 0:00:00]} Nf6 {[%emt 0:00:05]} 2. c4 {[%emt 0:00:14]} c5 {[%emt 0:00:06]} 3. d5 {[%emt 0:01:12]} b5 {[%emt 0:00:05]} 4. b3 {[%emt 0:03:52]} g6 {[%emt 0:05:37]} 5. Nf3 {[%emt 0:01:20]} d6 {[%emt 0:03:18]} 6. Bb2 {[%emt 0:02:29]} Bg7 {[%emt 0:03:49]} 7. e3 {[%emt 0:03:58]} bxc4 {[%emt 0:06:04]} 8. bxc4 {[%emt 0:00:13]} O-O {[%emt 0:01:44]} 9. Be2 {[%emt 0:00:50]} Nbd7 {[%emt 0:06:33]} 10. O-O {[%emt 0:00:39]} Rb8 {[%emt 0:02:11]} 11. Qc2 {[%emt 0:03:23]} Rxb2 {[%emt 0:16:47]} 12. Qxb2 {[%emt 0:04:50]} Ne4 {[%emt 0:01:51]} 13. Qc2 {[%emt 0:00:35]} Bxa1 {[%emt 0:01:06]} 14. Qxe4 {[%emt 0:00:21]} Ne5 15. Nbd2 {[%emt 0:04:41]} Bf5 {[%emt 0:14:52]} 16. Qh4 {[%emt 0:04:06]} Nxf3+ {[%emt 0:02:08]} 17. Nxf3 {[%emt 0:04:11]} Bf6 {[%emt 0:01:13]} 18. Ng5 {[%emt 0:04:11]} Bxg5 {[%emt 0:00:35]} 19. Qxg5 {[%emt 0:00:22]} f6 {[%emt 0:15:44]} 20. Qh6 Qa5 {[%emt 0:03:19]} 21. g4 {[%emt 0:23:10]} Bc2 {[%emt 0:01:37]} 22. f4 {[%emt 0:24:42]} Qd2 {[%emt 0:01:00]} 23. Bf3 {[%emt 0:06:40]} Qxe3+ {[%emt 0:00:14]} 24. Kg2 {[%emt 0:00:41]} Rb8 {[%emt 0:02:36]} 25. Kg3 {[%emt 0:02:07]} Be4 {[%emt 0:00:50]} 26. g5 {[%emt 0:01:30]} f5 {[%emt 0:04:17]} 27. Qh3 {[%emt 0:01:54]} Rb2 {[%emt 0:00:32]} 28. a4 {[%emt 0:00:32]} Bxf3 {[%emt 0:01:14]} 29. Rxf3 {[%emt 0:00:34]} Qe1+ {[%emt 0:00:04]} 0-1

[Event "XVII Profigaia Open 2017"]
[Site "Gaia"]
[Date "2017.06.16"]
[Round "4"]
[White "Mesquita, Goncalo Sincero Cos"]
[Black "Oliveira, Maria Alice Ramos M"]
[Result "0-1"]
[ECO "A16"]
[WhiteElo "1173"]
[BlackElo "1561"]
[Annotator "NA RC"]
[PlyCount "96"]
[EventDate "2017.??.??"]
[EventType "swiss"]
[EventCountry "POR"]
[SourceTitle "playchess.com"]
[Source "ChessBase"]
[SourceQuality "1"]
[TimeControl "5400+30"]

1. c4 {[%emt 0:00:00]} Nf6 {[%emt 0:01:35]} 2. Nc3 {[%emt 0:00:00]} g6 {[%emt 0:00:04]} 3. g3 {[%emt 0:00:00]} Bg7 {[%emt 0:00:07]} 4. Bg2 {[%emt 0:00:09]} d6 {[%emt 0:00:09]} 5. Nf3 {[%emt 0:00:19]} O-O {[%emt 0:00:11]} 6. O-O {[%emt 0:00:09]} c6 {[%emt 0:01:08]} 7. d3 {[%emt 0:01:10]} a6 {[%emt 0:00:13]} 8. Qb3 {[%emt 0:01:49]} Nbd7 {[%emt 0:14:17]} 9. Be3 {[%emt 0:07:09]} Ng4 {[%emt 0:01:18]} 10. Bd4 {[%emt 0:04:19]} e5 {[%emt 0:01:19]} 11. Be3 {[%emt 0:02:07]} Nxe3 {[%emt 0:00:07]} 12. fxe3 {[%emt 0:00:10]} Bh6 {[%emt 0:00:25]} 13. Nd1 {[%emt 0:02:50]} Nf6 {[%emt 0:26:51]} 14. d4 {[%emt 0:12:22]} Qe7 {[%emt 0:16:00]} 15. dxe5 {[%emt 0:20:26]} dxe5 {[%emt 0:00:26]} 16. Kh1 {[%emt 0:03:53]} Bg4 {[%emt 0:07:54]} 17. Ng1 {[%emt 0:04:08]} Rad8 {[%emt 0:02:06]} 18. Bf3 {[%emt 0:04:50]} Bc8 {[%emt 0:17:46]} 19. Nf2 {[%emt 0:05:43]} Qc5 {[%emt 0:01:21]} 20. e4 {[%emt 0:00:12]} Bg7 {[%emt 0:02:09]} 21. Nd3 {[%emt 0:01:25]} Qe7 {[%emt 0:00:38]} 22. Qb4 {[%emt 0:00:53]} Qxb4 {[%emt 0:00:54]} 23. Nxb4 {[%emt 0:00:09]} Rd4 {[%emt 0:00:59]} 24. Rac1 {[%emt 0:01:07]} a5 {[%emt 0:02:20]} 25. e3 {[%emt 0:00:44]} Rd2 {[%emt 0:00:41]} 26. Rc2 {[%emt 0:00:21]} Rfd8 {[%emt 0:00:23]} 27. Rxd2 {[%emt 0:03:32]} Rxd2 {[%emt 0:00:06]} 28. Nxc6 {[%emt 0:00:34]} bxc6 {[%emt 0:00:05]} 29. Rb1 {[%emt 0:00:19]} Be6 {[%emt 0:01:14]} 30. Be2 {[%emt 0:00:37]} Nxe4 {[%emt 0:00:12]} 31. Bf3 {[%emt 0:01:20]} Nf2+ {[%emt 0:00:57]} 32. Kg2 {[%emt 0:00:26]} Ng4+ {[%emt 0:00:56]} 33. Kf1 {[%emt 0:00:58]} Nxh2+ {[%emt 0:00:55]} 34. Ke1 {[%emt 0:00:10]} Nxf3+ {[%emt 0:00:26]} 35. Nxf3 {[%emt 0:00:10]} Rd3 {[%emt 0:00:47]} 36. Ke2 {[%emt 0:01:01]} Bxc4 {[%emt 0:00:23]} 37. b3 {[%emt 0:00:11]} Rxb3+ {[%emt 0:00:26]} 38. Kd2 {[%emt 0:00:23]} Rxb1 {[%emt 0:00:05]} 39. Ne1 {[%emt 0:00:10]} Bxa2 {[%emt 0:00:25]} 40. Nd3 {[%emt 0:00:20]} e4 {[%emt 0:00:10]} 41. Nc1 {[%emt 0:00:12]} Rb2+ {[%emt 0:00:09]} 42. Kd1 {[%emt 0:00:23]} Bb3+ {[%emt 0:00:12]} 43. Nxb3 {[%emt 0:00:17]} Rxb3 {[%emt 0:00:04]} 44. Kc2 {[%emt 0:00:09]} a4 {[%emt 0:00:03]} 45. g4 {[%emt 0:00:13]} Rb2+ {[%emt 0:00:05]} 46. Kc1 {[%emt 0:00:24]} a3 {[%emt 0:00:04]} 47. Kd1 {[%emt 0:00:07]} a2 {[%emt 0:00:05]} 48. Kc1 {[%emt 0:00:02]} a1=Q# 0-1

[Event "XVII Profigaia Open 2017"]
[Site "Gaia"]
[Date "2017.06.16"]
[Round "4"]
[White "Amorim, Vicente Nuno Marque"]
[Black "Clemente, António Manuel"]
[Result "0-1"]
[ECO "C77"]
[WhiteElo "1084"]
[BlackElo "1393"]
[Annotator "NA RC"]
[PlyCount "80"]
[EventDate "2017.??.??"]
[EventType "swiss"]
[EventCountry "POR"]
[SourceTitle "playchess.com"]
[Source "ChessBase"]
[SourceQuality "1"]
[TimeControl "5400+30"]

1. e4 {[%emt 0:02:18]} e5 {[%emt 0:00:25]} 2. Nf3 {[%emt 0:00:17]} Nc6 {[%emt 0:00:17]} 3. Bb5 {[%emt 0:00:22]} a6 {[%emt 0:00:20]} 4. Ba4 {[%emt 0:00:08]} Nf6 {[%emt 0:00:24]} 5. Nc3 {[%emt 0:00:21]} b5 {[%emt 0:00:23]} 6. Bb3 {[%emt 0:00:21]} Be7 {[%emt 0:00:24]} 7. Ng5 {[%emt 0:00:29]} O-O {[%emt 0:00:17]} 8. Qf3 {[%emt 0:00:20]} Nd4 {[%emt 0:01:04]} 9. Qg3 {[%emt 0:07:51]} d6 {[%emt 0:01:56]} 10. Qh4 {[%emt 0:08:27]} c6 {[%emt 0:00:44]} 11. O-O {[%emt 0:00:43]} Nxb3 {[%emt 0:00:32]} 12. axb3 {[%emt 0:01:35]} h6 {[%emt 0:00:10]} 13. Nf3 {[%emt 0:02:08]} Nd5 {[%emt 0:02:41]} 14. Qg3 {[%emt 0:01:26]} Nf4 {[%emt 0:00:14]} 15. d3 {[%emt 0:01:35]} Nh5 {[%emt 0:00:21]} 16. Nxe5 {[%emt 0:06:09]} Nxg3 {[%emt 0:00:20]} 17. Nxc6 {[%emt 0:00:09]} Qc7 {[%emt 0:00:42]} 18. Nxe7+ {[%emt 0:00:32]} Qxe7 {[%emt 0:00:17]} 19. fxg3 {[%emt 0:00:10]} Bb7 {[%emt 0:00:42]} 20. Rf4 {[%emt 0:09:43]} Qe6 {[%emt 0:00:56]} 21. Be3 {[%emt 0:01:35]} g5 {[%emt 0:01:22]} 22. Rf2 {[%emt 0:00:51]} f5 {[%emt 0:01:05]} 23. Re2 {[%emt 0:09:05]} f4 {[%emt 0:02:33]} 24. gxf4 {[%emt 0:01:19]} gxf4 {[%emt 0:00:12]} 25. Bd2 {[%emt 0:00:33]} Qg6 {[%emt 0:00:53]} 26. Nd5 {[%emt 0:01:50]} Bxd5 {[%emt 0:00:24]} 27. exd5 {[%emt 0:00:16]} f3 {[%emt 0:00:22]} 28. Rf2 {[%emt 0:00:12]} Qh5 {[%emt 0:01:00]} 29. Raf1 {[%emt 0:01:39]} fxg2 {[%emt 0:01:34]} 30. Rxg2+ {[%emt 0:00:13]} Kh7 {[%emt 0:00:07]} 31. Bc3 {[%emt 0:04:07]} Rxf1+ {[%emt 0:00:03]} 32. Kxf1 {[%emt 0:00:24]} Rg8 {[%emt 0:00:20]} 33. Rxg8 {[%emt 0:01:37]} Kxg8 {[%emt 0:00:04]} 34. Bb4 {[%emt 0:03:53]} Qxd5 {[%emt 0:00:03]} 35. Bd2 {[%emt 0:01:19]} Qf3+ {[%emt 0:00:06]} 36. Ke1 {[%emt 0:00:16]} h5 {[%emt 0:00:54]} 37. Bb4 {[%emt 0:01:49]} d5 {[%emt 0:00:11]} 38. c4 {[%emt 0:00:21]} dxc4 39. dxc4 bxc4 {[%emt 0:02:38]} 40. bxc4 {[%emt 0:01:21]} Qe4+ 0-1

[Event "XVII Profigaia Open 2017"]
[Site "Gaia"]
[Date "2017.06.16"]
[Round "4"]
[White "Paiva, Rodrigo Garcia"]
[Black "Rocha, Nuno Miguel"]
[Result "1/2-1/2"]
[ECO "D56"]
[WhiteElo "1075"]
[BlackElo "1287"]
[Annotator "NA RC"]
[PlyCount "127"]
[EventDate "2017.??.??"]
[EventType "swiss"]
[EventCountry "POR"]
[SourceTitle "playchess.com"]
[Source "ChessBase"]
[SourceQuality "1"]
[TimeControl "5400+30"]

1. d4 {[%emt 0:00:00]} d5 {[%emt 0:00:29]} 2. c4 {[%emt 0:00:00]} e6 {[%emt 0:00:28]} 3. Nc3 {[%emt 0:00:00]} Nf6 {[%emt 0:00:37]} 4. Bg5 {[%emt 0:00:10]} Be7 {[%emt 0:01:06]} 5. Nf3 {[%emt 0:00:14]} h6 {[%emt 0:01:11]} 6. Bh4 {[%emt 0:00:12]} O-O {[%emt 0:03:23]} 7. e3 {[%emt 0:00:58]} c6 {[%emt 0:01:33]} 8. cxd5 {[%emt 0:00:43]} exd5 {[%emt 0:00:57]} 9. Bd3 {[%emt 0:01:01]} Nfd7 {[%emt 0:01:39]} 10. Bxe7 {[%emt 0:00:20]} Qxe7 {[%emt 0:00:12]} 11. O-O {[%emt 0:02:08]} Nf6 {[%emt 0:00:13]} 12. Qc2 {[%emt 0:00:16]} Bg4 {[%emt 0:01:54]} 13. Ne5 {[%emt 0:03:59]} Be6 {[%emt 0:01:10]} 14. e4 {[%emt 0:02:58]} Nbd7 {[%emt 0:02:10]} 15. Nxd7 {[%emt 0:01:40]} Qxd7 {[%emt 0:00:33]} 16. e5 {[%emt 0:00:45]} Ne8 {[%emt 0:00:28]} 17. b4 {[%emt 0:00:22]} Nc7 {[%emt 0:02:42]} 18. f4 {[%emt 0:03:32]} f5 {[%emt 0:01:10]} 19. a4 {[%emt 0:02:28]} a6 {[%emt 0:00:31]} 20. Qb2 {[%emt 0:01:47]} b5 {[%emt 0:03:50]} 21. a5 {[%emt 0:02:31]} Qe7 {[%emt 0:01:59]} 22. g3 {[%emt 0:00:56]} g6 {[%emt 0:04:54]} 23. Ne2 {[%emt 0:02:28]} Rf7 {[%emt 0:00:55]} 24. Rac1 {[%emt 0:00:46]} Bd7 {[%emt 0:01:26]} 25. Qc2 {[%emt 0:04:20]} Qe8 {[%emt 0:01:38]} 26. Qd2 {[%emt 0:02:54]} Ne6 {[%emt 0:00:12]} 27. h4 {[%emt 0:01:19]} Rg7 {[%emt 0:01:04]} 28. Kh2 {[%emt 0:01:04]} Qf7 {[%emt 0:01:50]} 29. Rg1 {[%emt 0:04:36]} Rf8 {[%emt 0:06:13]} 30. Rg2 {[%emt 0:03:43]} Qe7 {[%emt 0:00:31]} 31. Rcg1 {[%emt 0:02:05]} g5 {[%emt 0:01:16]} 32. Kh3 {[%emt 0:03:34]} g4+ {[%emt 0:02:56]} 33. Kh2 {[%emt 0:00:24]} h5 {[%emt 0:00:54]} 34. Rb1 {[%emt 0:00:22]} Rgf7 {[%emt 0:03:09]} 35. Nc1 {[%emt 0:00:44]} Kg7 {[%emt 0:00:32]} 36. Nb3 {[%emt 0:00:40]} Kg6 {[%emt 0:00:12]} 37. Nc5 {[%emt 0:00:22]} Nxc5 {[%emt 0:00:14]} 38. dxc5 {[%emt 0:00:09]} Be6 {[%emt 0:00:30]} 39. Re2 {[%emt 0:01:06]} Rd8 {[%emt 0:00:07]} 40. Rd1 {[%emt 0:01:08]} Qc7 {[%emt 0:00:17]} 41. Qb2 {[%emt 0:00:59]} Rfd7 {[%emt 0:00:20]} 42. Red2 {[%emt 0:00:54]} Re8 {[%emt 0:02:20]} 43. Be2 {[%emt 0:00:26]} Qd8 {[%emt 0:00:25]} 44. Kg2 {[%emt 0:00:23]} Qe7 {[%emt 0:00:42]} 45. Kf2 {[%emt 0:00:31]} Red8 {[%emt 0:00:10]} 46. Qd4 {[%emt 0:01:06]} Qf7 {[%emt 0:00:40]} 47. Kg2 {[%emt 0:00:12]} Qg7 {[%emt 0:01:54]} 48. Kh2 {[%emt 0:01:35]} Re7 {[%emt 0:01:42]} 49. Kg1 {[%emt 0:00:10]} Rde8 {[%emt 0:01:34]} 50. Kf2 {[%emt 0:01:06]} Bg8 {[%emt 0:02:03]} 51. Kf1 {[%emt 0:00:29]} Be6 {[%emt 0:03:32]} 52. Kg2 {[%emt 0:00:18]} Bc8 {[%emt 0:00:38]} 53. Bd3 {[%emt 0:00:15]} Re6 {[%emt 0:01:20]} 54. Kf2 {[%emt 0:00:09]} Bb7 {[%emt 0:00:12]} 55. Qc3 {[%emt 0:00:13]} Rd8 {[%emt 0:00:25]} 56. Qc2 {[%emt 0:00:11]} Qf7 {[%emt 0:00:19]} 57. Kg1 {[%emt 0:00:12]} Bc8 {[%emt 0:00:53]} 58. Kg2 {[%emt 0:00:30]} Re7 {[%emt 0:00:14]} 59. Be2 {[%emt 0:00:34]} Red7 {[%emt 0:00:54]} 60. Rd4 {[%emt 0:00:25]} Qe6 {[%emt 0:00:25]} 61. R1d3 {[%emt 0:00:19]} Rf7 {[%emt 0:00:50]} 62. Qd2 {[%emt 0:00:10]} Bb7 {[%emt 0:00:56]} 63. Kg1 {[%emt 0:00:30]} Rfd7 {[%emt 0:01:17]} 64. Kf2 1/2-1/2